{"text_format":"1","workbook":"xlsx","n_sheets":1,"sheets":["Liste de valeurs uniques"],"not_rendered":{"charts":0,"images":0,"macros":0,"external_links":1,"defined_names":1,"comments":0,"pivot_tables":0},"unopened":[],"bounds":{"document_bytes":16777216,"sheet_cells":100000,"rows_first":2000,"rows_last":500,"rows_between":2000,"halvings":0,"cell_chars":16384,"cell_head_chars":4096},"cells_cut":0,"cells_raw":0,"read":"whole","date_system":"1900"}

{"sheet":"Liste de valeurs uniques","index":0,"n_rows":1127,"n_cols":5,"rows_kept":1127,"cut":false,"hidden":false,"merged":[]}
["Liste exhaustive"]
[]
[]
["Clients",null,"Liste exhaustive"]
["Albert LONNOY",null,{"$f":"IFERROR(INDEX(TblListeDesClients[Clients],MATCH(0,COUNTIF($C$4:C4,TblListeDesClients[Clients]),0)),\"\")","v":"Albert LONNOY"},null,"{=SIERREUR(INDEX(TblListeDesClients[Clients];EQUIV(0;NB.SI($C$4:C4;TblListeDesClients[Clients]);0));\"\")}"]
["AMS",null,{"$f":"IFERROR(INDEX(TblListeDesClients[Clients],MATCH(0,COUNTIF($C$4:C5,TblListeDesClients[Clients]),0)),\"\")","v":"AMS"}]
["André LUCAS",null,{"$f":"IFERROR(INDEX(TblListeDesClients[Clients],MATCH(0,COUNTIF($C$4:C6,TblListeDesClients[Clients]),0)),\"\")","v":"André LUCAS"}]
["André LUCAS",null,{"$f":"IFERROR(INDEX(TblListeDesClients[Clients],MATCH(0,COUNTIF($C$4:C7,TblListeDesClients[Clients]),0)),\"\")","v":"Anne-Thérèse BUCHHOLTZ"}]
["Anne-Thérèse BUCHHOLTZ",null,{"$f":"IFERROR(INDEX(TblListeDesClients[Clients],MATCH(0,COUNTIF($C$4:C8,TblListeDesClients[Clients]),0)),\"\")","v":"Ascend Precision Material"}]
["Anne-Thérèse BUCHHOLTZ",null,{"$f":"IFERROR(INDEX(TblListeDesClients[Clients],MATCH(0,COUNTIF($C$4:C9,TblListeDesClients[Clients]),0)),\"\")","v":"Ateliers de la Colline"}]
["Anne-Thérèse BUCHHOLTZ",null,{"$f":"IFERROR(INDEX(TblListeDesClients[Clients],MATCH(0,COUNTIF($C$4:C10,TblListeDesClients[Clients]),0)),\"\")","v":"AVS "}]
["Anne-Thérèse BUCHHOLTZ",null,{"$f":"IFERROR(INDEX(TblListeDesClients[Clients],MATCH(0,COUNTIF($C$4:C11,TblListeDesClients[Clients]),0)),\"\")","v":"BEGUIN"}]
["Ascend Precision Material",null,{"$f":"IFERROR(INDEX(TblListeDesClients[Clients],MATCH(0,COUNTIF($C$4:C12,TblListeDesClients[Clients]),0)),\"\")","v":"Benoît GILLET - N'a plus de société"}]
["Ascend Precision Material",null,{"$f":"IFERROR(INDEX(TblListeDesClients[Clients],MATCH(0,COUNTIF($C$4:C13,TblListeDesClients[Clients]),0)),\"\")","v":"Bodarwe"}]
["Ascend Precision Material",null,{"$f":"IFERROR(INDEX(TblListeDesClients[Clients],MATCH(0,COUNTIF($C$4:C14,TblListeDesClients[Clients]),0)),\"\")","v":"Boulangerie - Pâtisserie de la Place"}]
["Ascend Precision Material",null,{"$f":"IFERROR(INDEX(TblListeDesClients[Clients],MATCH(0,COUNTIF($C$4:C15,TblListeDesClients[Clients]),0)),\"\")","v":"Brasserie de Chimay"}]
["Ascend Precision Material",null,{"$f":"IFERROR(INDEX(TblListeDesClients[Clients],MATCH(0,COUNTIF($C$4:C16,TblListeDesClients[Clients]),0)),\"\")","v":"CABINET DE MEDECINE GENERALE JF"}]
["Ascend Precision Material",null,{"$f":"IFERROR(INDEX(TblListeDesClients[Clients],MATCH(0,COUNTIF($C$4:C17,TblListeDesClients[Clients]),0)),\"\")","v":"CADACOM"}]
["Ascend Precision Material",null,{"$f":"IFERROR(INDEX(TblListeDesClients[Clients],MATCH(0,COUNTIF($C$4:C18,TblListeDesClients[Clients]),0)),\"\")","v":"Centre de Soins ORL - Dr Gillet"}]
["Ascend Precision Material",null,{"$f":"IFERROR(INDEX(TblListeDesClients[Clients],MATCH(0,COUNTIF($C$4:C19,TblListeDesClients[Clients]),0)),\"\")","v":"Claude DEJAIE"}]
["Ascend Precision Material",null,{"$f":"IFERROR(INDEX(TblListeDesClients[Clients],MATCH(0,COUNTIF($C$4:C20,TblListeDesClients[Clients]),0)),\"\")","v":"Clear Channel"}]
["Ascend Precision Material",null,{"$f":"IFERROR(INDEX(TblListeDesClients[Clients],MATCH(0,COUNTIF($C$4:C21,TblListeDesClients[Clients]),0)),\"\")","v":"Computerland"}]
["Ascend Precision Material",null,{"$f":"IFERROR(INDEX(TblListeDesClients[Clients],MATCH(0,COUNTIF($C$4:C22,TblListeDesClients[Clients]),0)),\"\")","v":"D+"}]
["Ascend Precision Material",null,{"$f":"IFERROR(INDEX(TblListeDesClients[Clients],MATCH(0,COUNTIF($C$4:C23,TblListeDesClients[Clients]),0)),\"\")","v":"Dominique FAVERAUX"}]
["Ascend Precision Material",null,{"$f":"IFERROR(INDEX(TblListeDesClients[Clients],MATCH(0,COUNTIF($C$4:C24,TblListeDesClients[Clients]),0)),\"\")","v":"Dominique HALLOIN"}]
["Ascend Precision Material",null,{"$f":"IFERROR(INDEX(TblListeDesClients[Clients],MATCH(0,COUNTIF($C$4:C25,TblListeDesClients[Clients]),0)),\"\")","v":"Dynamik"}]
["Ascend Precision Material",null,{"$f":"IFERROR(INDEX(TblListeDesClients[Clients],MATCH(0,COUNTIF($C$4:C26,TblListeDesClients[Clients]),0)),\"\")","v":"Egilia"}]
["Ascend Precision Material",null,{"$f":"IFERROR(INDEX(TblListeDesClients[Clients],MATCH(0,COUNTIF($C$4:C27,TblListeDesClients[Clients]),0)),\"\")","v":"ENECO"}]
["Ateliers de la Colline",null,{"$f":"IFERROR(INDEX(TblListeDesClients[Clients],MATCH(0,COUNTIF($C$4:C28,TblListeDesClients[Clients]),0)),\"\")","v":"Forem-Bierset"}]
["Ateliers de la Colline",null,{"$f":"IFERROR(INDEX(TblListeDesClients[Clients],MATCH(0,COUNTIF($C$4:C29,TblListeDesClients[Clients]),0)),\"\")","v":"Freddy MISTAENS"}]
["Ateliers de la Colline",null,{"$f":"IFERROR(INDEX(TblListeDesClients[Clients],MATCH(0,COUNTIF($C$4:C30,TblListeDesClients[Clients]),0)),\"\")","v":"Germaine Deridder-Verpoorten"}]
["Ateliers de la Colline",null,{"$f":"IFERROR(INDEX(TblListeDesClients[Clients],MATCH(0,COUNTIF($C$4:C31,TblListeDesClients[Clients]),0)),\"\")","v":"Gustave JANSSEN"}]
["Ateliers de la Colline",null,{"$f":"IFERROR(INDEX(TblListeDesClients[Clients],MATCH(0,COUNTIF($C$4:C32,TblListeDesClients[Clients]),0)),\"\")","v":"Herman DE ROECK"}]
["Ateliers de la Colline",null,{"$f":"IFERROR(INDEX(TblListeDesClients[Clients],MATCH(0,COUNTIF($C$4:C33,TblListeDesClients[Clients]),0)),\"\")","v":"Imprim & Vous"}]
["Ateliers de la Colline",null,{"$f":"IFERROR(INDEX(TblListeDesClients[Clients],MATCH(0,COUNTIF($C$4:C34,TblListeDesClients[Clients]),0)),\"\")","v":"IRE"}]
["Ateliers de la Colline",null,{"$f":"IFERROR(INDEX(TblListeDesClients[Clients],MATCH(0,COUNTIF($C$4:C35,TblListeDesClients[Clients]),0)),\"\")","v":"Jacky FOSSEPREZ"}]
["Ateliers de la Colline",null,{"$f":"IFERROR(INDEX(TblListeDesClients[Clients],MATCH(0,COUNTIF($C$4:C36,TblListeDesClients[Clients]),0)),\"\")","v":"Jansen"}]
["Ateliers de la Colline",null,{"$f":"IFERROR(INDEX(TblListeDesClients[Clients],MATCH(0,COUNTIF($C$4:C37,TblListeDesClients[Clients]),0)),\"\")","v":"Jeanne MARY"}]
["Ateliers de la Colline",null,{"$f":"IFERROR(INDEX(TblListeDesClients[Clients],MATCH(0,COUNTIF($C$4:C38,TblListeDesClients[Clients]),0)),\"\")","v":"Jennifer BAILLY"}]
["Ateliers de la Colline",null,{"$f":"IFERROR(INDEX(TblListeDesClients[Clients],MATCH(0,COUNTIF($C$4:C39,TblListeDesClients[Clients]),0)),\"\")","v":"JLF Toitures"}]
["Ateliers de la Colline",null,{"$f":"IFERROR(INDEX(TblListeDesClients[Clients],MATCH(0,COUNTIF($C$4:C40,TblListeDesClients[Clients]),0)),\"\")","v":"KANEX"}]
["Ateliers de la Colline",null,{"$f":"IFERROR(INDEX(TblListeDesClients[Clients],MATCH(0,COUNTIF($C$4:C41,TblListeDesClients[Clients]),0)),\"\")","v":"La Folie du bébé"}]
["Ateliers de la Colline",null,{"$f":"IFERROR(INDEX(TblListeDesClients[Clients],MATCH(0,COUNTIF($C$4:C42,TblListeDesClients[Clients]),0)),\"\")","v":"LVDD"}]
["Ateliers de la Colline",null,{"$f":"IFERROR(INDEX(TblListeDesClients[Clients],MATCH(0,COUNTIF($C$4:C43,TblListeDesClients[Clients]),0)),\"\")","v":"Mamy Tartines"}]
["Ateliers de la Colline",null,{"$f":"IFERROR(INDEX(TblListeDesClients[Clients],MATCH(0,COUNTIF($C$4:C44,TblListeDesClients[Clients]),0)),\"\")","v":"Marc GERARD"}]
["Ateliers de la Colline",null,{"$f":"IFERROR(INDEX(TblListeDesClients[Clients],MATCH(0,COUNTIF($C$4:C45,TblListeDesClients[Clients]),0)),\"\")","v":"Michel LIBERT"}]
["Ateliers de la Colline",null,{"$f":"IFERROR(INDEX(TblListeDesClients[Clients],MATCH(0,COUNTIF($C$4:C46,TblListeDesClients[Clients]),0)),\"\")","v":"Mireille PIETTE"}]
["Ateliers de la Colline",null,{"$f":"IFERROR(INDEX(TblListeDesClients[Clients],MATCH(0,COUNTIF($C$4:C47,TblListeDesClients[Clients]),0)),\"\")","v":"Olivier DASNOY"}]
["Ateliers de la Colline",null,{"$f":"IFERROR(INDEX(TblListeDesClients[Clients],MATCH(0,COUNTIF($C$4:C48,TblListeDesClients[Clients]),0)),\"\")","v":"Olivier MASSAUX"}]
["Ateliers de la Colline",null,{"$f":"IFERROR(INDEX(TblListeDesClients[Clients],MATCH(0,COUNTIF($C$4:C49,TblListeDesClients[Clients]),0)),\"\")","v":"ProsysInfo"}]
["Ateliers de la Colline",null,{"$f":"IFERROR(INDEX(TblListeDesClients[Clients],MATCH(0,COUNTIF($C$4:C50,TblListeDesClients[Clients]),0)),\"\")","v":"Quality training"}]
["Ateliers de la Colline",null,{"$f":"IFERROR(INDEX(TblListeDesClients[Clients],MATCH(0,COUNTIF($C$4:C51,TblListeDesClients[Clients]),0)),\"\")","v":"René PAIROUX"}]
["Ateliers de la Colline",null,{"$f":"IFERROR(INDEX(TblListeDesClients[Clients],MATCH(0,COUNTIF($C$4:C52,TblListeDesClients[Clients]),0)),\"\")","v":"Roseline FLAHAUX"}]
["Ateliers de la Colline",null,{"$f":"IFERROR(INDEX(TblListeDesClients[Clients],MATCH(0,COUNTIF($C$4:C53,TblListeDesClients[Clients]),0)),\"\")","v":"Sandrine FOURNY"}]
["Ateliers de la Colline",null,{"$f":"IFERROR(INDEX(TblListeDesClients[Clients],MATCH(0,COUNTIF($C$4:C54,TblListeDesClients[Clients]),0)),\"\")","v":"SGI"}]
["AVS ",null,{"$f":"IFERROR(INDEX(TblListeDesClients[Clients],MATCH(0,COUNTIF($C$4:C55,TblListeDesClients[Clients]),0)),\"\")","v":"Siquet"}]
["AVS ",null,{"$f":"IFERROR(INDEX(TblListeDesClients[Clients],MATCH(0,COUNTIF($C$4:C56,TblListeDesClients[Clients]),0)),\"\")","v":"Sygmasoft"}]
["AVS ",null,{"$f":"IFERROR(INDEX(TblListeDesClients[Clients],MATCH(0,COUNTIF($C$4:C57,TblListeDesClients[Clients]),0)),\"\")","v":"TERABEL"}]
["AVS ",null,{"$f":"IFERROR(INDEX(TblListeDesClients[Clients],MATCH(0,COUNTIF($C$4:C58,TblListeDesClients[Clients]),0)),\"\")","v":"UNMS Geneviève Pâques"}]
["AVS ",null,{"$f":"IFERROR(INDEX(TblListeDesClients[Clients],MATCH(0,COUNTIF($C$4:C59,TblListeDesClients[Clients]),0)),\"\")","v":"Véronique HOEBEECK"}]
["AVS ",null,{"$f":"IFERROR(INDEX(TblListeDesClients[Clients],MATCH(0,COUNTIF($C$4:C60,TblListeDesClients[Clients]),0)),\"\")","v":"Vision-It"}]
["AVS ",null,{"$f":"IFERROR(INDEX(TblListeDesClients[Clients],MATCH(0,COUNTIF($C$4:C61,TblListeDesClients[Clients]),0)),\"\")","v":"WYVAX"}]
["AVS ",null,{"$f":"IFERROR(INDEX(TblListeDesClients[Clients],MATCH(0,COUNTIF($C$4:C62,TblListeDesClients[Clients]),0)),\"\")","v":"XYLLOME"}]
["AVS ",null,{"$f":"IFERROR(INDEX(TblListeDesClients[Clients],MATCH(0,COUNTIF($C$4:C63,TblListeDesClients[Clients]),0)),\"\")","v":"XYLOS"}]
["AVS ",null,{"$f":"IFERROR(INDEX(TblListeDesClients[Clients],MATCH(0,COUNTIF($C$4:C64,TblListeDesClients[Clients]),0)),\"\")","v":""}]
["AVS ",null,{"$f":"IFERROR(INDEX(TblListeDesClients[Clients],MATCH(0,COUNTIF($C$4:C65,TblListeDesClients[Clients]),0)),\"\")","v":""}]
["AVS ",null,{"$f":"IFERROR(INDEX(TblListeDesClients[Clients],MATCH(0,COUNTIF($C$4:C66,TblListeDesClients[Clients]),0)),\"\")","v":""}]
["AVS ",null,{"$f":"IFERROR(INDEX(TblListeDesClients[Clients],MATCH(0,COUNTIF($C$4:C67,TblListeDesClients[Clients]),0)),\"\")","v":""}]
["AVS ",null,{"$f":"IFERROR(INDEX(TblListeDesClients[Clients],MATCH(0,COUNTIF($C$4:C68,TblListeDesClients[Clients]),0)),\"\")","v":""}]
["AVS ",null,{"$f":"IFERROR(INDEX(TblListeDesClients[Clients],MATCH(0,COUNTIF($C$4:C69,TblListeDesClients[Clients]),0)),\"\")","v":""}]
["AVS ",null,{"$f":"IFERROR(INDEX(TblListeDesClients[Clients],MATCH(0,COUNTIF($C$4:C70,TblListeDesClients[Clients]),0)),\"\")","v":""}]
["AVS ",null,{"$f":"IFERROR(INDEX(TblListeDesClients[Clients],MATCH(0,COUNTIF($C$4:C71,TblListeDesClients[Clients]),0)),\"\")","v":""}]
["AVS ",null,{"$f":"IFERROR(INDEX(TblListeDesClients[Clients],MATCH(0,COUNTIF($C$4:C72,TblListeDesClients[Clients]),0)),\"\")","v":""}]
["AVS ",null,{"$f":"IFERROR(INDEX(TblListeDesClients[Clients],MATCH(0,COUNTIF($C$4:C73,TblListeDesClients[Clients]),0)),\"\")","v":""}]
["AVS ",null,{"$f":"IFERROR(INDEX(TblListeDesClients[Clients],MATCH(0,COUNTIF($C$4:C74,TblListeDesClients[Clients]),0)),\"\")","v":""}]
["AVS ",null,{"$f":"IFERROR(INDEX(TblListeDesClients[Clients],MATCH(0,COUNTIF($C$4:C75,TblListeDesClients[Clients]),0)),\"\")","v":""}]
["AVS ",null,{"$f":"IFERROR(INDEX(TblListeDesClients[Clients],MATCH(0,COUNTIF($C$4:C76,TblListeDesClients[Clients]),0)),\"\")","v":""}]
["AVS ",null,{"$f":"IFERROR(INDEX(TblListeDesClients[Clients],MATCH(0,COUNTIF($C$4:C77,TblListeDesClients[Clients]),0)),\"\")","v":""}]
["AVS ",null,{"$f":"IFERROR(INDEX(TblListeDesClients[Clients],MATCH(0,COUNTIF($C$4:C78,TblListeDesClients[Clients]),0)),\"\")","v":""}]
["AVS ",null,{"$f":"IFERROR(INDEX(TblListeDesClients[Clients],MATCH(0,COUNTIF($C$4:C79,TblListeDesClients[Clients]),0)),\"\")","v":""}]
["AVS ",null,{"$f":"IFERROR(INDEX(TblListeDesClients[Clients],MATCH(0,COUNTIF($C$4:C80,TblListeDesClients[Clients]),0)),\"\")","v":""}]
["AVS "]
["AVS "]
["AVS "]
["AVS "]
["AVS "]
["AVS "]
["AVS "]
["AVS "]
["AVS "]
["AVS "]
["AVS "]
["AVS "]
["AVS "]
["AVS "]
["AVS "]
["AVS "]
["AVS "]
["AVS "]
["AVS "]
["AVS "]
["AVS "]
["AVS "]
["AVS "]
["AVS "]
["AVS "]
["AVS "]
["AVS "]
["AVS "]
["AVS "]
["AVS "]
["AVS "]
["AVS "]
["AVS "]
["AVS "]
["AVS "]
["AVS "]
["AVS "]
["AVS "]
["AVS "]
["AVS "]
["AVS "]
["AVS "]
["AVS "]
["AVS "]
["AVS "]
["AVS "]
["AVS "]
["AVS "]
["AVS "]
["AVS "]
["AVS "]
["AVS "]
["AVS "]
["AVS "]
["AVS "]
["AVS "]
["AVS "]
["AVS "]
["AVS "]
["AVS "]
["AVS "]
["AVS "]
["AVS "]
["AVS "]
["AVS "]
["AVS "]
["AVS "]
["AVS "]
["AVS "]
["AVS "]
["AVS "]
["AVS "]
["AVS "]
["AVS "]
["AVS "]
["AVS "]
["AVS "]
["AVS "]
["AVS "]
["AVS "]
["AVS "]
["AVS "]
["AVS "]
["AVS "]
["AVS "]
["AVS "]
["AVS "]
["AVS "]
["AVS "]
["AVS "]
["AVS "]
["AVS "]
["AVS "]
["AVS "]
["AVS "]
["AVS "]
["AVS "]
["AVS "]
["AVS "]
["AVS "]
["AVS "]
["AVS "]
["AVS "]
["AVS "]
["AVS "]
["AVS "]
["AVS "]
["AVS "]
["AVS "]
["AVS "]
["AVS "]
["AVS "]
["AVS "]
["AVS "]
["AVS "]
["AVS "]
["AVS "]
["AVS "]
["AVS "]
["AVS "]
["BEGUIN"]
["BEGUIN"]
["BEGUIN"]
["BEGUIN"]
["BEGUIN"]
["BEGUIN"]
["BEGUIN"]
["BEGUIN"]
["BEGUIN"]
["BEGUIN"]
["BEGUIN"]
["BEGUIN"]
["BEGUIN"]
["BEGUIN"]
["BEGUIN"]
["BEGUIN"]
["BEGUIN"]
["BEGUIN"]
["BEGUIN"]
["BEGUIN"]
["BEGUIN"]
["BEGUIN"]
["BEGUIN"]
["BEGUIN"]
["BEGUIN"]
["BEGUIN"]
["BEGUIN"]
["BEGUIN"]
["BEGUIN"]
["Benoît GILLET - N'a plus de société"]
["Bodarwe"]
["Bodarwe"]
["Boulangerie - Pâtisserie de la Place"]
["Boulangerie - Pâtisserie de la Place"]
["Boulangerie - Pâtisserie de la Place"]
["Boulangerie - Pâtisserie de la Place"]
["Boulangerie - Pâtisserie de la Place"]
["Boulangerie - Pâtisserie de la Place"]
["Boulangerie - Pâtisserie de la Place"]
["Boulangerie - Pâtisserie de la Place"]
["Boulangerie - Pâtisserie de la Place"]
["Brasserie de Chimay"]
["Brasserie de Chimay"]
["Brasserie de Chimay"]
["Brasserie de Chimay"]
["Brasserie de Chimay"]
["Brasserie de Chimay"]
["Brasserie de Chimay"]
["Brasserie de Chimay"]
["Brasserie de Chimay"]
["Brasserie de Chimay"]
["Brasserie de Chimay"]
["Brasserie de Chimay"]
["Brasserie de Chimay"]
["Brasserie de Chimay"]
["Brasserie de Chimay"]
["Brasserie de Chimay"]
["Brasserie de Chimay"]
["Brasserie de Chimay"]
["Brasserie de Chimay"]
["Brasserie de Chimay"]
["Brasserie de Chimay"]
["Brasserie de Chimay"]
["Brasserie de Chimay"]
["Brasserie de Chimay"]
["Brasserie de Chimay"]
["Brasserie de Chimay"]
["Brasserie de Chimay"]
["Brasserie de Chimay"]
["Brasserie de Chimay"]
["Brasserie de Chimay"]
["Brasserie de Chimay"]
["Brasserie de Chimay"]
["Brasserie de Chimay"]
["Brasserie de Chimay"]
["Brasserie de Chimay"]
["Brasserie de Chimay"]
["Brasserie de Chimay"]
["Brasserie de Chimay"]
["Brasserie de Chimay"]
["Brasserie de Chimay"]
["Brasserie de Chimay"]
["Brasserie de Chimay"]
["Brasserie de Chimay"]
["Brasserie de Chimay"]
["Brasserie de Chimay"]
["Brasserie de Chimay"]
["Brasserie de Chimay"]
["Brasserie de Chimay"]
["Brasserie de Chimay"]
["Brasserie de Chimay"]
["Brasserie de Chimay"]
["Brasserie de Chimay"]
["Brasserie de Chimay"]
["Brasserie de Chimay"]
["Brasserie de Chimay"]
["Brasserie de Chimay"]
["Brasserie de Chimay"]
["Brasserie de Chimay"]
["Brasserie de Chimay"]
["Brasserie de Chimay"]
["Brasserie de Chimay"]
["Brasserie de Chimay"]
["Brasserie de Chimay"]
["CABINET DE MEDECINE GENERALE JF"]
["CABINET DE MEDECINE GENERALE JF"]
["CABINET DE MEDECINE GENERALE JF"]
["CABINET DE MEDECINE GENERALE JF"]
["CABINET DE MEDECINE GENERALE JF"]
["CABINET DE MEDECINE GENERALE JF"]
["CABINET DE MEDECINE GENERALE JF"]
["CABINET DE MEDECINE GENERALE JF"]
["CABINET DE MEDECINE GENERALE JF"]
["CABINET DE MEDECINE GENERALE JF"]
["CABINET DE MEDECINE GENERALE JF"]
["CABINET DE MEDECINE GENERALE JF"]
["CABINET DE MEDECINE GENERALE JF"]
["CABINET DE MEDECINE GENERALE JF"]
["CABINET DE MEDECINE GENERALE JF"]
["CABINET DE MEDECINE GENERALE JF"]
["CABINET DE MEDECINE GENERALE JF"]
["CABINET DE MEDECINE GENERALE JF"]
["CABINET DE MEDECINE GENERALE JF"]
["CABINET DE MEDECINE GENERALE JF"]
["CABINET DE MEDECINE GENERALE JF"]
["CABINET DE MEDECINE GENERALE JF"]
["CABINET DE MEDECINE GENERALE JF"]
["CABINET DE MEDECINE GENERALE JF"]
["CABINET DE MEDECINE GENERALE JF"]
["CABINET DE MEDECINE GENERALE JF"]
["CABINET DE MEDECINE GENERALE JF"]
["CABINET DE MEDECINE GENERALE JF"]
["CABINET DE MEDECINE GENERALE JF"]
["CABINET DE MEDECINE GENERALE JF"]
["CABINET DE MEDECINE GENERALE JF"]
["CABINET DE MEDECINE GENERALE JF"]
["CABINET DE MEDECINE GENERALE JF"]
["CABINET DE MEDECINE GENERALE JF"]
["CABINET DE MEDECINE GENERALE JF"]
["CABINET DE MEDECINE GENERALE JF"]
["CABINET DE MEDECINE GENERALE JF"]
["CABINET DE MEDECINE GENERALE JF"]
["CABINET DE MEDECINE GENERALE JF"]
["CABINET DE MEDECINE GENERALE JF"]
["CABINET DE MEDECINE GENERALE JF"]
["CADACOM"]
["CADACOM"]
["CADACOM"]
["CADACOM"]
["CADACOM"]
["CADACOM"]
["CADACOM"]
["CADACOM"]
["CADACOM"]
["CADACOM"]
["CADACOM"]
["CADACOM"]
["CADACOM"]
["CADACOM"]
["CADACOM"]
["CADACOM"]
["CADACOM"]
["CADACOM"]
["CADACOM"]
["CADACOM"]
["CADACOM"]
["CADACOM"]
["CADACOM"]
["CADACOM"]
["CADACOM"]
["CADACOM"]
["CADACOM"]
["CADACOM"]
["CADACOM"]
["CADACOM"]
["CADACOM"]
["CADACOM"]
["CADACOM"]
["CADACOM"]
["CADACOM"]
["CADACOM"]
["CADACOM"]
["CADACOM"]
["CADACOM"]
["CADACOM"]
["CADACOM"]
["CADACOM"]
["CADACOM"]
["CADACOM"]
["CADACOM"]
["CADACOM"]
["CADACOM"]
["CADACOM"]
["CADACOM"]
["CADACOM"]
["CADACOM"]
["CADACOM"]
["CADACOM"]
["CADACOM"]
["CADACOM"]
["CADACOM"]
["CADACOM"]
["CADACOM"]
["CADACOM"]
["CADACOM"]
["CADACOM"]
["CADACOM"]
["CADACOM"]
["CADACOM"]
["CADACOM"]
["CADACOM"]
["CADACOM"]
["CADACOM"]
["CADACOM"]
["CADACOM"]
["CADACOM"]
["CADACOM"]
["CADACOM"]
["CADACOM"]
["CADACOM"]
["CADACOM"]
["CADACOM"]
["CADACOM"]
["CADACOM"]
["CADACOM"]
["CADACOM"]
["CADACOM"]
["CADACOM"]
["CADACOM"]
["CADACOM"]
["CADACOM"]
["CADACOM"]
["CADACOM"]
["CADACOM"]
["CADACOM"]
["CADACOM"]
["CADACOM"]
["CADACOM"]
["CADACOM"]
["CADACOM"]
["CADACOM"]
["CADACOM"]
["CADACOM"]
["CADACOM"]
["CADACOM"]
["CADACOM"]
["CADACOM"]
["CADACOM"]
["CADACOM"]
["CADACOM"]
["CADACOM"]
["CADACOM"]
["CADACOM"]
["CADACOM"]
["CADACOM"]
["CADACOM"]
["CADACOM"]
["CADACOM"]
["CADACOM"]
["CADACOM"]
["CADACOM"]
["CADACOM"]
["CADACOM"]
["CADACOM"]
["CADACOM"]
["CADACOM"]
["CADACOM"]
["CADACOM"]
["CADACOM"]
["CADACOM"]
["CADACOM"]
["CADACOM"]
["CADACOM"]
["CADACOM"]
["CADACOM"]
["CADACOM"]
["CADACOM"]
["CADACOM"]
["CADACOM"]
["CADACOM"]
["CADACOM"]
["CADACOM"]
["CADACOM"]
["CADACOM"]
["CADACOM"]
["CADACOM"]
["CADACOM"]
["CADACOM"]
["CADACOM"]
["CADACOM"]
["CADACOM"]
["CADACOM"]
["CADACOM"]
["CADACOM"]
["CADACOM"]
["CADACOM"]
["CADACOM"]
["CADACOM"]
["CADACOM"]
["CADACOM"]
["Centre de Soins ORL - Dr Gillet"]
["Centre de Soins ORL - Dr Gillet"]
["Centre de Soins ORL - Dr Gillet"]
["Centre de Soins ORL - Dr Gillet"]
["Centre de Soins ORL - Dr Gillet"]
["Claude DEJAIE"]
["Claude DEJAIE"]
["Clear Channel"]
["Clear Channel"]
["Computerland"]
["Computerland"]
["Computerland"]
["Computerland"]
["Computerland"]
["Computerland"]
["Computerland"]
["Computerland"]
["Computerland"]
["Computerland"]
["Computerland"]
["Computerland"]
["Computerland"]
["Computerland"]
["Computerland"]
["Computerland"]
["Computerland"]
["Computerland"]
["Computerland"]
["Computerland"]
["Computerland"]
["Computerland"]
["Computerland"]
["Computerland"]
["Computerland"]
["Computerland"]
["Computerland"]
["Computerland"]
["Computerland"]
["Computerland"]
["Computerland"]
["Computerland"]
["Computerland"]
["Computerland"]
["Computerland"]
["Computerland"]
["Computerland"]
["Computerland"]
["Computerland"]
["Computerland"]
["Computerland"]
["Computerland"]
["D+"]
["D+"]
["D+"]
["D+"]
["D+"]
["D+"]
["D+"]
["D+"]
["D+"]
["Dominique FAVERAUX"]
["Dominique HALLOIN"]
["Dynamik"]
["Dynamik"]
["Dynamik"]
["Dynamik"]
["Dynamik"]
["Dynamik"]
["Dynamik"]
["Dynamik"]
["Dynamik"]
["Dynamik"]
["Dynamik"]
["Dynamik"]
["Dynamik"]
["Egilia"]
["Egilia"]
["Egilia"]
["Egilia"]
["Egilia"]
["ENECO"]
["ENECO"]
["ENECO"]
["ENECO"]
["ENECO"]
["Forem-Bierset"]
["Freddy MISTAENS"]
["Freddy MISTAENS"]
["Freddy MISTAENS"]
["Germaine Deridder-Verpoorten"]
["Germaine Deridder-Verpoorten"]
["Germaine Deridder-Verpoorten"]
["Germaine Deridder-Verpoorten"]
["Germaine Deridder-Verpoorten"]
["Gustave JANSSEN"]
["Gustave JANSSEN"]
["Gustave JANSSEN"]
["Gustave JANSSEN"]
["Gustave JANSSEN"]
["Gustave JANSSEN"]
["Gustave JANSSEN"]
["Gustave JANSSEN"]
["Herman DE ROECK"]
["Herman DE ROECK"]
["Herman DE ROECK"]
["Herman DE ROECK"]
["Herman DE ROECK"]
["Imprim & Vous"]
["Imprim & Vous"]
["Imprim & Vous"]
["Imprim & Vous"]
["Imprim & Vous"]
["Imprim & Vous"]
["Imprim & Vous"]
["Imprim & Vous"]
["Imprim & Vous"]
["Imprim & Vous"]
["Imprim & Vous"]
["Imprim & Vous"]
["Imprim & Vous"]
["Imprim & Vous"]
["Imprim & Vous"]
["Imprim & Vous"]
["Imprim & Vous"]
["Imprim & Vous"]
["Imprim & Vous"]
["Imprim & Vous"]
["Imprim & Vous"]
["Imprim & Vous"]
["Imprim & Vous"]
["Imprim & Vous"]
["Imprim & Vous"]
["Imprim & Vous"]
["Imprim & Vous"]
["IRE"]
["IRE"]
["IRE"]
["IRE"]
["IRE"]
["IRE"]
["IRE"]
["IRE"]
["IRE"]
["IRE"]
["Jacky FOSSEPREZ"]
["Jacky FOSSEPREZ"]
["Jacky FOSSEPREZ"]
["Jacky FOSSEPREZ"]
["Jansen"]
["Jansen"]
["Jansen"]
["Jeanne MARY"]
["Jeanne MARY"]
["Jennifer BAILLY"]
["JLF Toitures"]
["JLF Toitures"]
["JLF Toitures"]
["KANEX"]
["KANEX"]
["KANEX"]
["KANEX"]
["KANEX"]
["KANEX"]
["KANEX"]
["KANEX"]
["KANEX"]
["KANEX"]
["KANEX"]
["KANEX"]
["KANEX"]
["KANEX"]
["La Folie du bébé"]
["LVDD"]
["LVDD"]
["LVDD"]
["LVDD"]
["LVDD"]
["LVDD"]
["Mamy Tartines"]
["Mamy Tartines"]
["Mamy Tartines"]
["Mamy Tartines"]
["Mamy Tartines"]
["Mamy Tartines"]
["Mamy Tartines"]
["Mamy Tartines"]
["Mamy Tartines"]
["Mamy Tartines"]
["Mamy Tartines"]
["Mamy Tartines"]
["Mamy Tartines"]
["Mamy Tartines"]
["Mamy Tartines"]
["Marc GERARD"]
["Marc GERARD"]
["Marc GERARD"]
["Marc GERARD"]
["Marc GERARD"]
["Michel LIBERT"]
["Michel LIBERT"]
["Mireille PIETTE"]
["Mireille PIETTE"]
["Olivier DASNOY"]
["Olivier MASSAUX"]
["Olivier MASSAUX"]
["Olivier MASSAUX"]
["ProsysInfo"]
["ProsysInfo"]
["ProsysInfo"]
["ProsysInfo"]
["ProsysInfo"]
["ProsysInfo"]
["ProsysInfo"]
["ProsysInfo"]
["ProsysInfo"]
["ProsysInfo"]
["ProsysInfo"]
["ProsysInfo"]
["ProsysInfo"]
["ProsysInfo"]
["ProsysInfo"]
["ProsysInfo"]
["ProsysInfo"]
["ProsysInfo"]
["ProsysInfo"]
["ProsysInfo"]
["ProsysInfo"]
["ProsysInfo"]
["ProsysInfo"]
["ProsysInfo"]
["ProsysInfo"]
["ProsysInfo"]
["ProsysInfo"]
["ProsysInfo"]
["ProsysInfo"]
["ProsysInfo"]
["ProsysInfo"]
["ProsysInfo"]
["ProsysInfo"]
["ProsysInfo"]
["ProsysInfo"]
["ProsysInfo"]
["ProsysInfo"]
["ProsysInfo"]
["ProsysInfo"]
["ProsysInfo"]
["ProsysInfo"]
["ProsysInfo"]
["ProsysInfo"]
["ProsysInfo"]
["ProsysInfo"]
["ProsysInfo"]
["ProsysInfo"]
["ProsysInfo"]
["ProsysInfo"]
["ProsysInfo"]
["ProsysInfo"]
["ProsysInfo"]
["ProsysInfo"]
["ProsysInfo"]
["ProsysInfo"]
["ProsysInfo"]
["ProsysInfo"]
["ProsysInfo"]
["ProsysInfo"]
["ProsysInfo"]
["ProsysInfo"]
["ProsysInfo"]
["ProsysInfo"]
["ProsysInfo"]
["ProsysInfo"]
["ProsysInfo"]
["ProsysInfo"]
["ProsysInfo"]
["ProsysInfo"]
["ProsysInfo"]
["ProsysInfo"]
["ProsysInfo"]
["ProsysInfo"]
["ProsysInfo"]
["ProsysInfo"]
["ProsysInfo"]
["ProsysInfo"]
["ProsysInfo"]
["ProsysInfo"]
["ProsysInfo"]
["ProsysInfo"]
["ProsysInfo"]
["ProsysInfo"]
["ProsysInfo"]
["ProsysInfo"]
["ProsysInfo"]
["ProsysInfo"]
["ProsysInfo"]
["ProsysInfo"]
["ProsysInfo"]
["ProsysInfo"]
["ProsysInfo"]
["ProsysInfo"]
["ProsysInfo"]
["ProsysInfo"]
["ProsysInfo"]
["ProsysInfo"]
["ProsysInfo"]
["ProsysInfo"]
["ProsysInfo"]
["ProsysInfo"]
["ProsysInfo"]
["ProsysInfo"]
["ProsysInfo"]
["ProsysInfo"]
["ProsysInfo"]
["ProsysInfo"]
["ProsysInfo"]
["ProsysInfo"]
["ProsysInfo"]
["ProsysInfo"]
["ProsysInfo"]
["ProsysInfo"]
["Quality training"]
["Quality training"]
["Quality training"]
["Quality training"]
["Quality training"]
["Quality training"]
["Quality training"]
["Quality training"]
["Quality training"]
["Quality training"]
["Quality training"]
["Quality training"]
["Quality training"]
["Quality training"]
["Quality training"]
["Quality training"]
["Quality training"]
["Quality training"]
["Quality training"]
["Quality training"]
["Quality training"]
["Quality training"]
["Quality training"]
["Quality training"]
["Quality training"]
["Quality training"]
["Quality training"]
["Quality training"]
["Quality training"]
["Quality training"]
["Quality training"]
["Quality training"]
["Quality training"]
["Quality training"]
["Quality training"]
["Quality training"]
["Quality training"]
["Quality training"]
["Quality training"]
["Quality training"]
["Quality training"]
["Quality training"]
["Quality training"]
["Quality training"]
["Quality training"]
["Quality training"]
["Quality training"]
["Quality training"]
["Quality training"]
["Quality training"]
["Quality training"]
["Quality training"]
["Quality training"]
["Quality training"]
["Quality training"]
["Quality training"]
["Quality training"]
["Quality training"]
["Quality training"]
["Quality training"]
["Quality training"]
["Quality training"]
["Quality training"]
["Quality training"]
["Quality training"]
["Quality training"]
["Quality training"]
["Quality training"]
["Quality training"]
["Quality training"]
["Quality training"]
["Quality training"]
["Quality training"]
["Quality training"]
["Quality training"]
["Quality training"]
["Quality training"]
["Quality training"]
["Quality training"]
["Quality training"]
["Quality training"]
["Quality training"]
["Quality training"]
["Quality training"]
["Quality training"]
["Quality training"]
["Quality training"]
["Quality training"]
["Quality training"]
["Quality training"]
["Quality training"]
["Quality training"]
["Quality training"]
["Quality training"]
["Quality training"]
["Quality training"]
["Quality training"]
["Quality training"]
["Quality training"]
["Quality training"]
["Quality training"]
["Quality training"]
["Quality training"]
["Quality training"]
["Quality training"]
["Quality training"]
["Quality training"]
["Quality training"]
["Quality training"]
["Quality training"]
["Quality training"]
["Quality training"]
["Quality training"]
["Quality training"]
["Quality training"]
["Quality training"]
["Quality training"]
["Quality training"]
["Quality training"]
["Quality training"]
["Quality training"]
["Quality training"]
["Quality training"]
["Quality training"]
["Quality training"]
["Quality training"]
["Quality training"]
["Quality training"]
["Quality training"]
["Quality training"]
["Quality training"]
["Quality training"]
["Quality training"]
["Quality training"]
["Quality training"]
["Quality training"]
["Quality training"]
["Quality training"]
["Quality training"]
["Quality training"]
["Quality training"]
["Quality training"]
["Quality training"]
["Quality training"]
["Quality training"]
["Quality training"]
["René PAIROUX"]
["René PAIROUX"]
["Roseline FLAHAUX"]
["Sandrine FOURNY"]
["SGI"]
["SGI"]
["SGI"]
["SGI"]
["SGI"]
["SGI"]
["SGI"]
["SGI"]
["SGI"]
["SGI"]
["SGI"]
["SGI"]
["SGI"]
["SGI"]
["SGI"]
["SGI"]
["SGI"]
["SGI"]
["SGI"]
["SGI"]
["SGI"]
["SGI"]
["SGI"]
["SGI"]
["SGI"]
["SGI"]
["SGI"]
["SGI"]
["Siquet"]
["Sygmasoft"]
["Sygmasoft"]
["Sygmasoft"]
["Sygmasoft"]
["Sygmasoft"]
["Sygmasoft"]
["Sygmasoft"]
["Sygmasoft"]
["Sygmasoft"]
["Sygmasoft"]
["Sygmasoft"]
["Sygmasoft"]
["Sygmasoft"]
["Sygmasoft"]
["Sygmasoft"]
["Sygmasoft"]
["Sygmasoft"]
["Sygmasoft"]
["Sygmasoft"]
["Sygmasoft"]
["Sygmasoft"]
["Sygmasoft"]
["Sygmasoft"]
["Sygmasoft"]
["Sygmasoft"]
["Sygmasoft"]
["Sygmasoft"]
["Sygmasoft"]
["Sygmasoft"]
["Sygmasoft"]
["Sygmasoft"]
["Sygmasoft"]
["Sygmasoft"]
["Sygmasoft"]
["Sygmasoft"]
["Sygmasoft"]
["Sygmasoft"]
["Sygmasoft"]
["Sygmasoft"]
["Sygmasoft"]
["Sygmasoft"]
["Sygmasoft"]
["Sygmasoft"]
["Sygmasoft"]
["Sygmasoft"]
["Sygmasoft"]
["Sygmasoft"]
["Sygmasoft"]
["Sygmasoft"]
["Sygmasoft"]
["Sygmasoft"]
["Sygmasoft"]
["Sygmasoft"]
["Sygmasoft"]
["Sygmasoft"]
["Sygmasoft"]
["Sygmasoft"]
["Sygmasoft"]
["Sygmasoft"]
["Sygmasoft"]
["Sygmasoft"]
["Sygmasoft"]
["Sygmasoft"]
["Sygmasoft"]
["Sygmasoft"]
["Sygmasoft"]
["Sygmasoft"]
["Sygmasoft"]
["Sygmasoft"]
["Sygmasoft"]
["Sygmasoft"]
["Sygmasoft"]
["Sygmasoft"]
["Sygmasoft"]
["Sygmasoft"]
["Sygmasoft"]
["Sygmasoft"]
["Sygmasoft"]
["Sygmasoft"]
["Sygmasoft"]
["Sygmasoft"]
["Sygmasoft"]
["Sygmasoft"]
["Sygmasoft"]
["Sygmasoft"]
["Sygmasoft"]
["Sygmasoft"]
["Sygmasoft"]
["Sygmasoft"]
["Sygmasoft"]
["Sygmasoft"]
["Sygmasoft"]
["Sygmasoft"]
["Sygmasoft"]
["Sygmasoft"]
["Sygmasoft"]
["TERABEL"]
["UNMS Geneviève Pâques"]
["Véronique HOEBEECK"]
["Vision-It"]
["WYVAX"]
["WYVAX"]
["WYVAX"]
["WYVAX"]
["WYVAX"]
["WYVAX"]
["WYVAX"]
["WYVAX"]
["WYVAX"]
["WYVAX"]
["XYLLOME"]
["XYLLOME"]
["XYLLOME"]
["XYLLOME"]
["XYLLOME"]
["XYLLOME"]
["XYLLOME"]
["XYLLOME"]
["XYLLOME"]
["XYLLOME"]
["XYLLOME"]
["XYLOS"]
["XYLOS"]
["XYLOS"]
["XYLOS"]
["XYLOS"]
["XYLOS"]
["XYLOS"]